[Event "NJSK 2023 Jeugd A"]
[Site "Almelo, Netherlands"]
[Date "2023.04.30"]
[Round "1.7"]
[White "Boeren, Jurriaan"]
[Black "Adams, Oscar"]
[Result "1-0"]
[TimeControl "90min/40moves + 30min + 30sec/move"]
[WhiteElo "1979"]
[BlackElo "1760"]

1. e4 {[%clk 01:30:57]} {[%emt 00:00:02]} c5 {[%clk 01:30:51]} {[%emt
00:00:09]} 2. Nf3 {[%clk 01:31:23]} {[%emt 00:00:05]} d6 {[%clk 01:31:00]}
{[%emt 00:00:20]} 3. Bb5+ {[%clk 01:31:07]} {[%emt 00:00:46]} Nc6 {[%clk
01:30:24]} {[%emt 00:01:06]} 4. O-O {[%clk 01:29:05]} {[%emt 00:02:32]} Bg4
{[%clk 01:30:28]} {[%emt 00:00:26]} 5. c3 {[%clk 01:27:57]} {[%emt 00:01:39]}
a6 {[%clk 01:25:23]} {[%emt 00:05:34]} 6. Bxc6+ {[%clk 01:24:54]} {[%emt
00:03:33]} bxc6 {[%clk 01:25:45]} {[%emt 00:00:08]} 7. h3 {[%clk 01:24:01]}
{[%emt 00:01:23]} Bh5 {[%clk 01:24:34]} {[%emt 00:01:41]} 8. Re1 {[%clk
01:21:57]} {[%emt 00:02:35]} e5 {[%clk 01:23:27]} {[%emt 00:01:36]} 9. d3
{[%clk 01:13:33]} {[%emt 00:08:54]} Be7 {[%clk 01:20:43]} {[%emt 00:03:14]} 10.
Nbd2 {[%clk 01:12:08]} {[%emt 00:01:55]} Nf6 {[%clk 01:18:13]} {[%emt
00:03:00]} 11. Qa4 {[%clk 01:05:23]} {[%emt 00:07:16]} Qc8 {[%clk 01:15:29]}
{[%emt 00:03:14]} 12. d4 {[%clk 01:02:40]} {[%emt 00:03:12]} exd4 {[%clk
01:13:09]} {[%emt 00:02:49]} 13. cxd4 {[%clk 00:58:51]} {[%emt 00:04:20]} Nd7
{[%clk 01:11:05]} {[%emt 00:02:34]} 14. d5 {[%clk 00:40:15]} {[%emt 00:19:06]}
O-O {[%clk 01:06:24]} {[%emt 00:05:11]} 15. g4 {[%clk 00:35:11]} {[%emt
00:05:34]} Bg6 {[%clk 01:06:32]} {[%emt 00:00:23]} 16. Nc4 {[%clk 00:32:35]}
{[%emt 00:03:05]} Rb8 {[%clk 01:04:42]} {[%emt 00:02:21]} 17. Qxc6 {[%clk
00:29:21]} {[%emt 00:03:43]} Qxc6 {[%clk 01:04:27]} {[%emt 00:00:44]} 18. dxc6
{[%clk 00:29:50]} {[%emt 00:00:02]} Nb6 {[%clk 01:04:08]} {[%emt 00:00:50]} 19.
Na5 {[%clk 00:28:40]} {[%emt 00:01:39]} Rfe8 {[%clk 00:58:37]} {[%emt
00:06:01]} 20. Bf4 {[%clk 00:27:04]} {[%emt 00:02:06]} Bf8 {[%clk 00:53:30]}
{[%emt 00:05:37]} 21. e5 {[%clk 00:20:11]} {[%emt 00:07:24]} d5 {[%clk
00:51:49]} {[%emt 00:02:11]} 22. Nb7 {[%clk 00:16:28]} {[%emt 00:04:12]} Rxb7
{[%clk 00:44:14]} {[%emt 00:08:04]} 23. cxb7 {[%clk 00:16:50]} {[%emt
00:00:09]} Rb8 {[%clk 00:44:41]} {[%emt 00:00:03]} 24. e6 {[%clk 00:14:19]}
{[%emt 00:03:02]} Rxb7 {[%clk 00:45:00]} {[%emt 00:00:11]} 25. Ne5 {[%clk
00:13:48]} {[%emt 00:01:00]} c4 {[%clk 00:41:05]} {[%emt 00:04:25]} 26. Nxg6
{[%clk 00:12:05]} {[%emt 00:02:13]} hxg6 {[%clk 00:41:14]} {[%emt 00:00:21]} 27.
Rad1 {[%clk 00:11:55]} {[%emt 00:00:40]} fxe6 {[%clk 00:40:48]} {[%emt
00:00:56]} 28. Rxe6 {[%clk 00:12:01]} {[%emt 00:00:25]} Kf7 {[%clk 00:41:01]}
{[%emt 00:00:16]} 29. Rc6 {[%clk 00:12:10]} {[%emt 00:00:21]} Na4 {[%clk
00:39:04]} {[%emt 00:02:28]} 30. Rxd5 {[%clk 00:10:53]} {[%emt 00:01:46]} Nxb2
{[%clk 00:39:16]} {[%emt 00:00:18]} 31. Be5 {[%clk 00:08:49]} {[%emt 00:02:34]}
Na4 {[%clk 00:38:52]} {[%emt 00:00:54]} 32. Ra5 {[%clk 00:07:52]} {[%emt
00:01:27]} Rb4 {[%clk 00:37:24]} {[%emt 00:01:57]} 33. Kg2 {[%clk 00:07:38]}
{[%emt 00:00:45]} Nb6 {[%clk 00:36:07]} {[%emt 00:01:47]} 34. Rxa6 {[%clk
00:07:14]} {[%emt 00:00:54]} Na4 {[%clk 00:36:13]} {[%emt 00:00:25]} 35. a3
{[%clk 00:06:58]} {[%emt 00:00:46]} 1-0

[Event "NJSK 2023 Jeugd A"]
[Site "Almelo, Netherlands"]
[Date "2023.04.30"]
[Round "1.8"]
[White "Moskalets, Sofiia"]
[Black "Van Kuijk, Vadim"]
[Result "0-1"]
[TimeControl "90min/40moves + 30min + 30sec/move"]
[WhiteElo "1722"]
[BlackElo "1968"]

1. e4 {[%clk 01:30:57]} {[%emt 00:00:02]} c6 {[%clk 01:30:51]} {[%emt
00:00:10]} 2. d4 {[%clk 01:31:19]} {[%emt 00:00:08]} d5 {[%clk 01:31:00]}
{[%emt 00:00:20]} 3. e5 {[%clk 01:31:42]} {[%emt 00:00:08]} Bf5 {[%clk
01:31:25]} {[%emt 00:00:05]} 4. h4 {[%clk 01:31:58]} {[%emt 00:00:13]} h5
{[%clk 01:31:51]} {[%emt 00:00:05]} 5. c4 {[%clk 01:32:20]} {[%emt 00:00:08]}
e6 {[%clk 01:32:01]} {[%emt 00:00:19]} 6. Nc3 {[%clk 01:32:42]} {[%emt
00:00:08]} dxc4 {[%clk 01:32:14]} {[%emt 00:00:17]} 7. Bxc4 {[%clk 01:33:02]}
{[%emt 00:00:10]} Nd7 {[%clk 01:32:18]} {[%emt 00:00:26]} 8. Bd3 {[%clk
01:28:02]} {[%emt 00:05:30]} Bxd3 {[%clk 01:22:12]} {[%emt 00:10:37]} 9. Qxd3
{[%clk 01:28:24]} {[%emt 00:00:08]} Nxe5 {[%clk 01:21:34]} {[%emt 00:01:07]} 10.
Qe4 {[%clk 01:22:21]} {[%emt 00:06:33]} Ng4 {[%clk 01:12:18]} {[%emt 00:09:46]}
11. Nge2 {[%clk 00:57:36]} {[%emt 00:25:15]} N8f6 {[%clk 01:10:26]} {[%emt
00:02:22]} 12. Qc2 {[%clk 00:53:04]} {[%emt 00:05:02]} Qc7 {[%clk 01:06:23]}
{[%emt 00:04:34]} 13. f3 {[%clk 00:46:33]} {[%emt 00:07:00]} Nh6 {[%clk
01:06:12]} {[%emt 00:00:41]} 14. Bg5 {[%clk 00:39:47]} {[%emt 00:07:16]} Nf5
{[%clk 01:02:13]} {[%emt 00:04:29]} 15. O-O-O {[%clk 00:37:28]} {[%emt
00:02:49]} Bd6 {[%clk 00:57:19]} {[%emt 00:05:25]} 16. Rd3 {[%clk 00:26:53]}
{[%emt 00:11:05]} Ng3 {[%clk 00:48:32]} {[%emt 00:09:17]} 17. Nxg3 {[%clk
00:24:58]} {[%emt 00:02:24]} Bxg3 {[%clk 00:48:54]} {[%emt 00:00:08]} 18. Qd2
{[%clk 00:20:21]} {[%emt 00:05:07]} Bd6 {[%clk 00:46:09]} {[%emt 00:03:16]} 19.
Kb1 {[%clk 00:19:56]} {[%emt 00:00:54]} O-O-O {[%clk 00:45:22]} {[%emt
00:01:17]} 20. Rc1 {[%clk 00:16:45]} {[%emt 00:03:40]} Qa5 {[%clk 00:40:57]}
{[%emt 00:04:56]} 21. Bxf6 {[%clk 00:09:16]} {[%emt 00:07:59]} gxf6 {[%clk
00:41:24]} {[%emt 00:00:03]} 22. d5 {[%clk 00:08:16]} {[%emt 00:01:30]} exd5
{[%clk 00:40:08]} {[%emt 00:01:47]} 23. Rxd5 {[%clk 00:07:25]} {[%emt
00:01:21]} Bc5 {[%clk 00:39:17]} {[%emt 00:01:21]} 24. Rxd8+ {[%clk 00:07:12]}
{[%emt 00:00:43]} Rxd8 {[%clk 00:38:51]} {[%emt 00:00:56]} 25. Qc2 {[%clk
00:04:38]} {[%emt 00:03:07]} Bd4 {[%clk 00:36:11]} {[%emt 00:03:07]} 26. Ne4
{[%clk 00:03:30]} {[%emt 00:01:38]} Be5 {[%clk 00:35:48]} {[%emt 00:00:53]} 27.
Rd1 {[%clk 00:02:14]} {[%emt 00:01:45]} Rxd1+ {[%clk 00:29:57]} {[%emt
00:06:21]} 28. Qxd1 {[%clk 00:02:38]} {[%emt 00:00:06]} Qd5 {[%clk 00:29:40]}
{[%emt 00:00:48]} 29. Qe2 {[%clk 00:01:54]} {[%emt 00:01:14]} f5 {[%clk
00:27:43]} {[%emt 00:02:27]} 30. Nd2 {[%clk 00:01:19]} {[%emt 00:01:04]} Bg3
{[%clk 00:24:39]} {[%emt 00:03:32]} 31. Nc4 {[%clk 00:01:16]} {[%emt 00:00:35]}
Qe6 {[%clk 00:24:02]} {[%emt 00:01:08]} 32. Qd3 {[%clk 00:00:57]} {[%emt
00:00:49]} Bxh4 {[%clk 00:22:55]} {[%emt 00:01:36]} 33. Nd6+ {[%clk 00:01:06]}
{[%emt 00:00:22]} Kc7 {[%clk 00:23:18]} {[%emt 00:00:07]} 34. Nxf5 {[%clk
00:01:27]} {[%emt 00:00:09]} Bf6 {[%clk 00:23:12]} {[%emt 00:00:35]} 35. Ne3
{[%clk 00:01:28]} {[%emt 00:00:30]} Qe5 {[%clk 00:20:11]} {[%emt 00:03:31]} 36.
Qb3 {[%clk 00:01:31]} {[%emt 00:00:27]} Qe8 {[%clk 00:18:20]} {[%emt 00:02:21]}
37. a3 {[%clk 00:01:39]} {[%emt 00:00:22]} Qe6 {[%clk 00:16:02]} {[%emt
00:02:47]} 38. Qd3 {[%clk 00:01:38]} {[%emt 00:00:31]} Bg5 {[%clk 00:15:23]}
{[%emt 00:01:09]} 39. Nc2 {[%clk 00:01:36]} {[%emt 00:00:32]} Qd6 {[%clk
00:11:17]} {[%emt 00:04:36]} 40. Qe2 {[%clk 00:01:14]} {[%emt 00:00:48]} Kd7
{[%clk 00:10:46]} {[%emt 00:01:05]} 41. Nb4 {[%clk 00:00:32]} {[%emt 00:01:12]}
f6 {[%clk 00:08:57]} {[%emt 00:02:19]} 42. Qe4 {[%clk 00:22:35]} {[%emt
00:08:28]} Kc7 {[%clk 00:28:36]} {[%emt 00:10:50]} 43. Nd3 {[%clk 00:13:32]}
{[%emt 00:09:33]} Qd5 {[%clk 00:26:00]} {[%emt 00:03:06]} 44. Qe7+ {[%clk
00:08:56]} {[%emt 00:05:06]} Kb6 {[%clk 00:24:59]} {[%emt 00:01:31]} 45. Qb4+
{[%clk 00:08:24]} {[%emt 00:01:02]} Qb5 {[%clk 00:25:21]} {[%emt 00:00:09]} 46.
Qd4+ {[%clk 00:08:25]} {[%emt 00:00:28]} c5 {[%clk 00:24:14]} {[%emt 00:01:37]}
47. Qd8+ {[%clk 00:07:16]} {[%emt 00:01:40]} Ka6 {[%clk 00:24:34]} {[%emt
00:00:10]} 48. f4 {[%clk 00:04:19]} {[%emt 00:03:27]} Bh4 {[%clk 00:24:25]}
{[%emt 00:00:39]} 49. g3 {[%clk 00:02:12]} {[%emt 00:02:37]} Bxg3 {[%clk
00:23:06]} {[%emt 00:01:48]} 50. b4 {[%clk 00:02:13]} {[%emt 00:00:30]} Bf2
{[%clk 00:22:38]} {[%emt 00:00:57]} 51. Nxf2 {[%clk 00:02:13]} {[%emt
00:00:30]} cxb4 {[%clk 00:21:19]} {[%emt 00:01:50]} 52. Qd6+ {[%clk 00:01:53]}
{[%emt 00:00:49]} Ka5 {[%clk 00:13:43]} {[%emt 00:08:06]} 53. Qd2 {[%clk
00:01:03]} {[%emt 00:01:20]} Ka4 {[%clk 00:12:39]} {[%emt 00:01:34]} 54. Qd1+
{[%clk 00:00:44]} {[%emt 00:00:49]} Kxa3 {[%clk 00:10:44]} {[%emt 00:02:25]} 55.
Nd3 {[%clk 00:00:44]} {[%emt 00:00:30]} Qc4 {[%clk 00:10:33]} {[%emt 00:00:41]}
56. Nc1 {[%clk 00:00:31]} {[%emt 00:00:43]} b3 {[%clk 00:05:35]} {[%emt
00:05:28]} 57. Qd6+ {[%clk 00:00:42]} {[%emt 00:00:19]} Ka4 {[%clk 00:06:03]}
{[%emt 00:00:02]} 58. Qd7+ {[%clk 00:00:48]} {[%emt 00:00:24]} Ka5 {[%clk
00:06:29]} {[%emt 00:00:05]} 59. Qd2+ {[%clk 00:00:48]} {[%emt 00:00:30]} Ka6
{[%clk 00:06:02]} {[%emt 00:00:57]} 60. Qd6+ {[%clk 00:01:10]} {[%emt
00:00:07]} Kb5 {[%clk 00:04:53]} {[%emt 00:01:39]} 61. Qd7+ {[%clk 00:01:16]}
{[%emt 00:00:24]} Kc5 {[%clk 00:03:22]} {[%emt 00:02:01]} 62. Qe7+ {[%clk
00:01:20]} {[%emt 00:00:27]} Kd4 {[%clk 00:03:23]} {[%emt 00:00:29]} 63. Qxf6+
{[%clk 00:01:09]} {[%emt 00:00:40]} Ke3 {[%clk 00:03:48]} {[%emt 00:00:05]} 64.
Qe7+ {[%clk 00:01:10]} {[%emt 00:00:30]} Qe4+ {[%clk 00:04:10]} {[%emt
00:00:08]} 65. Qxe4+ {[%clk 00:01:33]} {[%emt 00:00:07]} Kxe4 {[%clk 00:04:37]}
{[%emt 00:00:02]} 66. Nxb3 {[%clk 00:00:42]} {[%emt 00:01:21]} h4 {[%clk
00:04:07]} {[%emt 00:01:01]} 67. Kc1 {[%clk 00:00:39]} {[%emt 00:00:33]} h3
{[%clk 00:04:29]} {[%emt 00:00:08]} 68. Nd2+ {[%clk 00:01:03]} {[%emt
00:00:06]} Kxf4 {[%clk 00:04:54]} {[%emt 00:00:04]} 69. Nf1 {[%clk 00:01:22]}
{[%emt 00:00:11]} Kf3 {[%clk 00:04:59]} {[%emt 00:00:26]} 0-1

[Event "NJSK 2023 Jeugd A"]
[Site "Almelo, Netherlands"]
[Date "2023.05.01"]
[Round "2.1"]
[White "Van der Hagen, Loek"]
[Black "Boeren, Jurriaan"]
[Result "1-0"]
[TimeControl "90min/40moves + 30min + 30sec/move"]
[WhiteElo "2273"]
[BlackElo "1979"]

1. e4 {[%clk 01:30:57]} {[%emt 00:00:02]} e5 {[%clk 01:30:53]} {[%emt
00:00:08]} 2. Nf3 {[%clk 01:31:21]} {[%emt 00:00:06]} Nc6 {[%clk 01:31:20]}
{[%emt 00:00:03]} 3. Bc4 {[%clk 01:31:39]} {[%emt 00:00:12]} Nf6 {[%clk
01:31:20]} {[%emt 00:00:29]} 4. d3 {[%clk 01:32:03]} {[%emt 00:00:06]} Bc5
{[%clk 01:31:45]} {[%emt 00:00:05]} 5. Nc3 {[%clk 01:32:09]} {[%emt 00:00:25]}
d6 {[%clk 01:22:21]} {[%emt 00:09:54]} 6. Bg5 {[%clk 01:31:46]} {[%emt
00:00:53]} h6 {[%clk 01:20:20]} {[%emt 00:02:31]} 7. Bxf6 {[%clk 01:32:11]}
{[%emt 00:00:05]} Qxf6 {[%clk 01:20:38]} {[%emt 00:00:11]} 8. Nd5 {[%clk
01:32:36]} {[%emt 00:00:05]} Qd8 {[%clk 01:21:03]} {[%emt 00:00:05]} 9. c3
{[%clk 01:33:01]} {[%emt 00:00:05]} a6 {[%clk 01:15:08]} {[%emt 00:06:25]} 10.
d4 {[%clk 01:33:23]} {[%emt 00:00:08]} exd4 {[%clk 01:09:36]} {[%emt 00:06:03]}
11. cxd4 {[%clk 01:32:36]} {[%emt 00:01:17]} Ba7 {[%clk 01:09:46]} {[%emt
00:00:20]} 12. h3 {[%clk 01:27:55]} {[%emt 00:05:10]} O-O {[%clk 01:07:32]}
{[%emt 00:02:45]} 13. O-O {[%clk 01:26:22]} {[%emt 00:02:03]} Be6 {[%clk
00:56:31]} {[%emt 00:11:30]} 14. Bb3 {[%clk 01:21:49]} {[%emt 00:05:02]} Ne7
{[%clk 00:48:01]} {[%emt 00:09:01]} 15. Nf4 {[%clk 01:15:13]} {[%emt 00:07:06]}
Bxb3 {[%clk 00:35:30]} {[%emt 00:13:02]} 16. Qxb3 {[%clk 01:15:36]} {[%emt
00:00:06]} Qd7 {[%clk 00:34:21]} {[%emt 00:01:39]} 17. Rac1 {[%clk 01:07:13]}
{[%emt 00:08:53]} Bb6 {[%clk 00:33:24]} {[%emt 00:01:27]} 18. a4 {[%clk
01:04:24]} {[%emt 00:03:19]} Rad8 {[%clk 00:26:56]} {[%emt 00:06:58]} 19. d5
{[%clk 00:57:40]} {[%emt 00:07:14]} Rde8 {[%clk 00:19:37]} {[%emt 00:07:50]} 20.
Nh5 {[%clk 00:29:24]} {[%emt 00:28:45]} Ng6 {[%clk 00:14:11]} {[%emt 00:05:56]}
21. Ng3 {[%clk 00:29:23]} {[%emt 00:00:30]} a5 {[%clk 00:11:15]} {[%emt
00:03:26]} 22. Nd2 {[%clk 00:26:01]} {[%emt 00:03:52]} Bc5 {[%clk 00:07:27]}
{[%emt 00:04:18]} 23. Kh2 {[%clk 00:25:02]} {[%emt 00:01:29]} Rb8 {[%clk
00:05:52]} {[%emt 00:02:05]} 24. Nf5 {[%clk 00:19:01]} {[%emt 00:06:31]} b5
{[%clk 00:04:05]} {[%emt 00:02:17]} 25. Qc3 {[%clk 00:17:08]} {[%emt 00:02:22]}
f6 {[%clk 00:04:05]} {[%emt 00:00:31]} 26. Nb3 {[%clk 00:09:38]} {[%emt
00:08:00]} bxa4 {[%clk 00:01:18]} {[%emt 00:03:17]} 27. Nxc5 {[%clk 00:10:01]}
{[%emt 00:00:08]} dxc5 {[%clk 00:01:47]} {[%emt 00:00:01]} 28. Qg3 {[%clk
00:09:21]} {[%emt 00:01:10]} Kh7 {[%clk 00:01:44]} {[%emt 00:00:34]} 29. Rxc5
{[%clk 00:09:30]} {[%emt 00:00:21]} Ne5 {[%clk 00:00:48]} {[%emt 00:01:26]} 30.
Rfc1 {[%clk 00:08:46]} {[%emt 00:01:13]} Rfc8 {[%clk 00:00:59]} {[%emt
00:00:18]} 31. f4 {[%clk 00:08:42]} {[%emt 00:00:35]} Ng6 {[%clk 00:00:52]}
{[%emt 00:00:37]} 32. d6 {[%clk 00:07:22]} {[%emt 00:01:50]} cxd6 {[%clk
00:00:55]} {[%emt 00:00:28]} 33. Rxc8 {[%clk 00:07:42]} {[%emt 00:00:09]} Rxc8
{[%clk 00:01:24]} {[%emt 00:00:01]} 34. Rxc8 {[%clk 00:08:04]} {[%emt
00:00:08]} Qxc8 {[%emt 00:00:02]} 35. Qxg6+ {[%clk 00:08:26]} {[%emt 00:00:08]}
1-0

[Event "NJSK 2023 Jeugd A"]
[Site "Almelo, Netherlands"]
[Date "2023.05.01"]
[Round "2.2"]
[White "Van Kuijk, Vadim"]
[Black "Slagboom, Leandro"]
[Result "1-0"]
[TimeControl "90min/40moves + 30min + 30sec/move"]
[WhiteElo "1968"]
[BlackElo "2228"]

1. e4 {[%clk 01:30:38]} {[%emt 00:00:22]} c5 {[%clk 01:30:48]} {[%emt
00:00:12]} 2. Nf3 {[%clk 01:31:01]} {[%emt 00:00:06]} Nc6 {[%clk 01:31:09]}
{[%emt 00:00:09]} 3. d4 {[%clk 01:31:26]} {[%emt 00:00:06]} cxd4 {[%clk
01:31:34]} {[%emt 00:00:05]} 4. Nxd4 {[%clk 01:31:52]} {[%emt 00:00:04]} e5
{[%clk 01:31:59]} {[%emt 00:00:05]} 5. Nb5 {[%clk 01:32:13]} {[%emt 00:00:09]}
d6 {[%clk 01:32:12]} {[%emt 00:00:17]} 6. c4 {[%clk 01:32:37]} {[%emt
00:00:07]} Be6 {[%clk 01:32:15]} {[%emt 00:00:26]} 7. N5c3 {[%clk 01:29:16]}
{[%emt 00:03:51]} Nf6 {[%clk 01:32:08]} {[%emt 00:00:37]} 8. Bd3 {[%clk
01:27:28]} {[%emt 00:02:18]} g6 {[%clk 01:31:53]} {[%emt 00:00:45]} 9. Bg5
{[%clk 01:26:22]} {[%emt 00:01:36]} Bg7 {[%clk 01:30:59]} {[%emt 00:01:23]} 10.
Nd5 {[%clk 01:21:45]} {[%emt 00:05:07]} h6 {[%clk 01:26:33]} {[%emt 00:04:56]}
11. Bxf6 {[%clk 01:19:50]} {[%emt 00:02:26]} Bxf6 {[%clk 01:25:33]} {[%emt
00:01:30]} 12. Nbc3 {[%clk 01:19:36]} {[%emt 00:00:44]} O-O {[%clk 01:25:01]}
{[%emt 00:01:01]} 13. O-O {[%clk 01:17:46]} {[%emt 00:02:20]} Rc8 {[%clk
01:24:06]} {[%emt 00:01:24]} 14. b4 {[%clk 01:07:44]} {[%emt 00:10:32]} Bg5
{[%clk 01:20:10]} {[%emt 00:04:27]} 15. g3 {[%clk 00:51:15]} {[%emt 00:16:59]}
h5 {[%clk 01:16:48]} {[%emt 00:03:52]} 16. f4 {[%clk 00:49:28]} {[%emt
00:02:16]} exf4 {[%clk 01:12:10]} {[%emt 00:05:08]} 17. gxf4 {[%clk 00:47:45]}
{[%emt 00:02:13]} Bf6 {[%clk 01:11:49]} {[%emt 00:00:51]} 18. e5 {[%clk
00:43:37]} {[%emt 00:04:39]} dxe5 {[%clk 01:07:55]} {[%emt 00:04:24]} 19. f5
{[%clk 00:43:45]} {[%emt 00:00:21]} Bxd5 {[%clk 01:06:59]} {[%emt 00:01:25]} 20.
Nxd5 {[%clk 00:43:51]} {[%emt 00:00:24]} Nxb4 {[%clk 01:02:30]} {[%emt
00:05:00]} 21. Nxb4 {[%clk 00:36:01]} {[%emt 00:08:20]} Qb6+ {[%clk 01:01:45]}
{[%emt 00:01:15]} 22. Kh1 {[%clk 00:36:24]} {[%emt 00:00:07]} Qxb4 {[%clk
01:01:55]} {[%emt 00:00:19]} 23. fxg6 {[%clk 00:31:01]} {[%emt 00:05:54]} fxg6
{[%clk 01:01:32]} {[%emt 00:00:53]} 24. Bxg6 {[%clk 00:29:35]} {[%emt
00:01:56]} Qxc4 {[%clk 00:53:44]} {[%emt 00:08:18]} 25. Qxh5 {[%clk 00:28:31]}
{[%emt 00:01:33]} Qd5+ {[%clk 00:46:18]} {[%emt 00:07:57]} 26. Rf3 {[%clk
00:28:47]} {[%emt 00:00:15]} Rc7 {[%clk 00:27:19]} {[%emt 00:19:29]} 27. Rg1
{[%clk 00:26:55]} {[%emt 00:02:21]} Bg5 {[%clk 00:27:07]} {[%emt 00:00:41]} 28.
Bf7+ {[%clk 00:24:44]} {[%emt 00:02:41]} Rfxf7 {[%clk 00:21:59]} {[%emt
00:05:39]} 29. Rxg5+ {[%clk 00:25:07]} {[%emt 00:00:07]} 1-0